bitfinex/quotes_SOLUSD_20241031
["timestamp","ask_amount","ask_price","bid_price","bid_amount"]
[1730392099525,5.8795,170.08,170.04,5.8809]
[1730392100328,12.09911,170.08,170.04,5.8809]
[1730392101026,12.09911,170.09,170.04,5.8809]
[1730392101225,17.97791,170.1,170.04,32.68241]
[1730392101526,12.09911,170.06,170.03,16.4912]
[1730392101731,12.09911,170.08,170.03,16.4912]
[1730392101946,12.09911,170.08,170.03,22.3724]
[1730392102441,12.09911,170.07,170.03,22.3724]
[1730392103731,12.09911,170.07,170.03,16.4912]
[1730392104043,12.09911,170.06,170.03,16.4912]
[1730392104252,12.09911,170.05,170.01,14.7046]
[1730392104454,7.75384594,170.05,170.01,14.7046]
[1730392104745,7.75384594,170.04,170.01,14.7046]
[1730392104921,7.75384594,170.04,169.99,24.12174594]
[1730392104922,7.75384594,170.04,169.99,22.2504]
[1730392105544,13.63514594,170.03,169.99,16.3679]
[1730392105850,7.75384594,170.04,169.99,22.2505]
[1730392106249,7.75384594,170.05,170.0,7.75384594]
[1730392106446,5.8802,170.06,170.02,7.75384594]
[1730392106653,5.8802,170.06,170.01,7.75384594]
[1730392106950,13.63404594,170.06,170.0,7.75384594]
[1730392107251,7.75384594,170.05,169.99,44.71104594]
[1730392107552,7.75384594,170.03,169.99,16.3679]
[1730392107738,7.75384594,170.04,169.99,22.2505]
[1730392108847,7.75384594,170.04,169.99,36.9572]
[1730392109054,7.75384594,170.08,170.02,7.75384594]
[1730392109256,7.75384594,170.08,170.03,7.75384594]
[1730392109438,7.75384594,170.06,170.0,7.75384594]
[1730392109761,5.8792,170.09,170.01,7.75384594]
[1730392110257,7.75384594,170.07,170.01,7.75384594]
[1730392110645,13.63394594,170.07,170.02,5.8816]
[1730392111531,13.63394594,170.07,170.02,13.63544594]
[1730392113455,20.80012788,170.12,170.03,7.75384594]
[1730392113456,7.75384594,170.09,170.03,7.75384594]
[1730392113647,7.75384594,170.1,170.04,7.75384594]
[1730392113962,7.75384594,170.09,170.03,7.75384594]
[1730392114450,13.63234594,170.11,170.05,7.75384594]
[1730392114662,7.75384594,170.1,170.04,7.75384594]
[1730392114836,7.75384594,170.09,170.03,13.97574594]
[1730392115543,7.75384594,170.07,170.03,6.2219]
[1730392115764,7.75384594,170.07,170.02,14.7041]
[1730392116048,7.75384594,170.07,170.02,22.45794594]
[1730392116955,7.75384594,170.07,170.02,28.33954594]
[1730392117568,7.75384594,170.06,170.02,14.7041]
[1730392117750,7.75384594,170.05,170.01,5.8816]
[1730392117934,7.75384594,170.06,170.01,13.63544594]
[1730392118335,13.63394594,170.07,170.01,13.63544594]
[1730392119144,7.75384594,170.06,170.01,13.63544594]
[1730392119329,7.75384594,170.06,170.01,5.8816]
[1730392119653,7.75384594,170.05,170.01,5.8816]
[1730392120035,7.75384594,170.06,170.01,5.8816]
[1730392120234,13.63424594,170.06,170.01,5.8816]
[1730392120430,7.75384594,170.04,169.99,43.5782]
[1730392121038,7.75384594,170.03,169.99,43.5782]
[1730392121249,7.75384594,170.03,169.99,36.9568]
[1730392121463,7.75384594,170.03,169.99,16.3679]
[1730392121670,7.75384594,170.02,169.97,5.8832]
[1730392122480,7.75384594,170.02,169.97,28.34544594]
[1730392123474,13.63554594,170.02,169.97,20.5916]
[1730392123774,13.63554594,170.02,169.97,28.34544594]
[1730392123970,7.75384594,170.02,169.97,28.34544594]
[1730392124469,7.75384594,170.02,169.97,20.5916]
[1730392126357,7.75384594,170.01,169.97,14.7084]
[1730392126568,7.75384594,170.02,169.97,14.7084]
[1730392127982,7.75384594,170.02,169.97,20.5917]
[1730392129362,7.75384594,170.01,169.97,20.5917]
[1730392130361,7.75384594,170.01,169.97,14.7084]
[1730392131368,7.75384594,170.01,169.95,23.00554594]
[1730392131671,7.75384594,169.98,169.95,21.1357]
[1730392131873,7.75384594,169.98,169.95,5.884]
[1730392132270,7.75384594,169.98,169.94,14.7105]
[1730392133249,7.75384594,169.98,169.94,20.5949]
[1730392134165,7.75384594,169.99,169.94,20.5949]
[1730392134567,7.75384594,169.98,169.94,20.5949]
[1730392135263,7.75384594,169.97,169.94,20.5949]
[1730392135783,7.75384594,169.97,169.94,14.7105]
[1730392135950,7.75384594,169.96,169.94,14.7105]
[1730392137766,7.75384594,169.95,169.92,20.5979]
[1730392138175,5.8835,169.97,169.92,20.5979]
[1730392138378,7.75384594,169.96,169.92,20.5979]
[1730392138574,7.75384594,169.96,169.92,14.7128]
[1730392138757,5.8835,169.97,169.92,14.7128]
[1730392138758,7.75384594,169.95,169.92,14.7128]
[1730392138956,7.75384594,169.96,169.92,20.5979]
[1730392139575,13.63754594,169.96,169.92,20.5979]
[1730392140780,7.75384594,169.96,169.92,20.5979]
[1730392141258,7.75384594,169.95,169.9,5.8855]
[1730392141660,7.75384594,169.95,169.9,13.63934594]
[1730392141859,7.75384594,169.94,169.9,20.6]
[1730392142375,7.75384594,169.95,169.9,20.6]
[1730392142876,7.75384594,169.94,169.9,20.6]
[1730392143754,7.75384594,169.95,169.9,20.6]
[1730392143952,7.75384594,169.96,169.91,7.75384594]
[1730392144374,13.63644594,169.99,169.94,7.75384594]
[1730392144678,7.75384594,170.01,169.96,7.75384594]
[1730392144886,7.75384594,169.99,169.94,15.058]
[1730392145057,7.75384594,170.0,169.94,22.81184594]
[1730392145255,7.75384594,170.0,169.95,7.75384594]
[1730392145562,7.75384594,170.01,169.96,7.75384594]
[1730392145769,7.75384594,170.01,169.95,7.75384594]
[1730392146072,7.75384594,170.01,169.96,5.8837]
[1730392146073,7.75384594,170.0,169.96,5.8837]
[1730392147158,20.81353865,170.05,169.97,7.75384594]
[1730392147159,7.75384594,170.02,169.97,7.75384594]
[1730392147676,7.75384594,170.02,169.96,7.75384594]
[1730392148379,7.75384594,170.01,169.97,5.8833]
[1730392149177,7.75384594,170.02,169.97,5.8833]
[1730392149382,7.75384594,170.05,170.0,7.75384594]
[1730392149598,7.75384594,170.06,170.01,7.75384594]
[1730392149884,7.75384594,170.05,169.99,7.75384594]
[1730392150057,7.75384594,170.04,169.99,7.75384594]
[1730392150474,5.8808,170.05,170.0,7.75384594]
[1730392151470,14.698,170.1,170.02,7.75384594]
[1730392151471,7.75384594,170.08,170.02,7.75384594]
[1730392151684,7.75384594,170.08,170.03,7.75384594]
[1730392151984,7.75384594,170.09,170.03,7.75384594]
[1730392152159,6.11084341,170.11,170.06,7.75384594]
[1730392152360,7.75384594,170.13,170.08,28.33224594]
[1730392152981,7.75384594,170.13,170.08,20.5784]
[1730392153369,5.8775,170.14,170.09,7.75384594]
[1730392153567,5.8775,170.14,170.1,7.75384594]
[1730392154072,5.8775,170.14,170.09,7.75384594]
[1730392154383,13.63134594,170.14,170.08,7.75384594]
[1730392155271,7.75384594,170.13,170.08,7.75384594]
[1730392155471,7.75384594,170.13,170.07,7.75384594]
[1730392155679,5.8782,170.12,170.07,13.63364594]
[1730392155886,13.63204594,170.12,170.06,13.63404594]
[1730392158691,13.63204594,170.12,170.07,7.75384594]
[1730392159192,5.8782,170.12,170.07,7.75384594]
[1730392159383,13.63204594,170.12,170.06,7.75384594]
[1730392159776,13.63204594,170.12,170.06,13.63384594]
[1730392159973,5.8782,170.12,170.07,7.75384594]
[1730392160193,5.8782,170.12,170.08,7.75384594]
[1730392162172,5.8782,170.12,170.07,7.75384594]
[1730392163595,13.63204594,170.12,170.06,13.63394594]
[1730392164277,7.75384594,170.11,170.05,28.33584594]
[1730392165693,13.63264594,170.1,170.05,7.75384594]
[1730392166395,5.8788,170.1,170.05,7.75384594]
[1730392167092,13.63264594,170.1,170.04,13.63464594]
[1730392167679,7.75384594,170.09,170.04,13.63464594]
[1730392167883,5.8794,170.09,170.04,13.63464594]
[1730392168077,13.63324594,170.09,170.03,13.63494594]
[1730392168397,7.75384594,170.08,170.03,13.63494594]
[1730392168604,7.75384594,170.08,170.03,7.75384594]
[1730392168772,5.8794,170.09,170.03,13.63494594]
[1730392168773,13.63324594,170.09,170.03,13.63494594]
[1730392168974,7.75384594,170.08,170.03,13.63494594]
[1730392169187,13.63324594,170.09,170.03,28.33814594]
[1730392171285,7.75384594,170.08,170.03,14.7032]
[1730392172597,5.8799,170.07,170.03,14.7032]
[1730392173095,7.75384594,170.05,170.01,21.0359]
[1730392173294,7.75384594,170.05,170.01,15.154]
[1730392174291,7.75384594,170.06,170.01,15.154]
[1730392174503,13.63374594,170.07,170.01,43.49474594]
[1730392174886,5.8799,170.07,170.02,7.75384594]
[1730392175585,5.8799,170.07,170.02,13.63534594]
[1730392175896,13.63374594,170.07,170.02,5.8815]
[1730392176199,7.75384594,170.06,170.02,5.8815]
[1730392176700,7.75384594,170.05,170.01,29.859]
[1730392176879,7.75384594,170.06,170.01,37.61284594]
[1730392177198,7.75384594,170.08,170.02,7.75384594]
[1730392177382,5.8792,170.09,170.04,7.75384594]
[1730392177694,7.75384594,170.07,170.01,43.49484594]
[1730392177897,7.75384594,170.08,170.02,7.75384594]
[1730392178088,13.63304594,170.09,170.03,7.75384594]
[1730392178798,13.63304594,170.09,170.04,5.8809]
[1730392179095,5.8792,170.09,170.05,7.75384594]
[1730392179301,13.63274594,170.1,170.05,7.75384594]
[1730392179487,13.63274594,170.1,170.04,28.33714594]
[1730392179688,7.75384594,170.09,170.04,20.5833]
[1730392179877,7.75384594,170.05,170.01,15.154]
[1730392180294,7.75384594,170.04,170.01,15.154]
[1730392181702,13.63444594,170.05,170.01,21.036]
[1730392182111,7.75384594,170.05,170.01,21.036]
[1730392182407,13.63414594,170.06,170.01,21.036]
[1730392182585,13.63414594,170.06,170.01,28.78984594]
[1730392183500,13.63414594,170.06,170.01,21.036]
[1730392184605,13.63414594,170.06,170.01,35.741]
[1730392185817,7.75384594,170.1,170.04,7.75384594]
[1730392185981,7.75384594,170.08,170.03,7.75384594]
[1730392186186,7.75384594,170.08,170.02,7.75384594]
[1730392186587,7.75384594,170.08,170.03,7.75384594]
[1730392187187,7.75384594,170.07,170.01,43.49484594]
[1730392187490,7.75384594,170.06,170.01,35.741]
[1730392188989,7.75384594,170.07,170.01,43.49484594]
[1730392190190,13.63374594,170.07,170.01,43.49484594]
[1730392190610,7.75384594,170.06,170.01,35.741]
[1730392191003,7.75384594,170.04,170.01,29.859]
[1730392191202,7.75384594,170.04,170.01,15.154]
[1730392191398,7.75384594,170.03,169.98,20.5899]
[1730392191602,7.75384594,170.04,169.98,28.34374594]
[1730392192309,13.63504594,170.04,169.98,28.34374594]
[1730392192495,5.8812,170.04,169.99,7.75384594]
[1730392193309,7.75384594,170.02,169.98,14.7072]
[1730392193686,7.75384594,170.03,169.98,20.5902]
[1730392194096,7.75384594,170.02,169.97,22.87474594]
[1730392194412,7.75384594,170.02,169.97,28.75804594]
[1730392195189,7.75384594,170.02,169.97,21.0042]
[1730392195513,7.75384594,170.0,169.96,5.8836]
[1730392197322,13.63604594,170.01,169.96,13.63744594]
[1730392198615,7.75384594,170.02,169.96,13.63744594]
[1730392198926,7.75384594,170.01,169.96,5.8836]
[1730392199103,7.75384594,170.01,169.96,13.63744594]
[1730392199304,7.75384594,170.02,169.96,28.34674594]
[1730392199726,7.75384594,170.01,169.96,28.34674594]
[1730392200025,7.75384594,170.03,169.97,7.75384594]
[1730392200233,7.75384594,170.02,169.97,7.75384594]
[1730392200423,7.75384594,170.0,169.96,14.7093]
[1730392200730,7.75384594,169.98,169.93,14.7117]
[1730392200912,7.75384594,169.97,169.93,20.5964]
[1730392201418,7.75384594,169.98,169.93,20.5964]
[1730392202034,13.63684594,169.98,169.93,28.35024594]
[1730392202221,13.63684594,169.98,169.93,20.5964]
[1730392202416,5.883,169.98,169.93,20.5964]
[1730392202731,7.75384594,169.97,169.93,20.5964]
[1730392203117,7.75384594,169.95,169.92,15.422]
[1730392203425,7.75384594,169.93,169.88,15.4544]
[1730392203728,7.75384594,169.91,169.87,14.7171]
[1730392203933,7.75384594,169.91,169.85,7.75384594]
[1730392204226,29.6242,169.97,169.85,5.8872]
[1730392204227,7.75384594,169.9,169.85,5.8872]
[1730392204931,7.75384594,169.9,169.85,13.64104594]
[1730392205426,13.63974594,169.9,169.85,13.64104594]
[1730392205636,13.63974594,169.9,169.85,5.8872]
[1730392205942,13.63974594,169.9,169.84,29.33114594]
[1730392205943,7.75384594,169.89,169.84,29.33114594]
[1730392206109,7.75384594,169.89,169.84,21.5773]
[1730392206312,7.75384594,169.88,169.84,21.5773]
[1730392206812,7.75384594,169.87,169.84,15.6895]
[1730392207017,7.75384594,169.89,169.84,30.4092]
[1730392207321,7.75384594,169.92,169.86,7.75384594]
[1730392207917,7.75384594,169.91,169.85,7.75384594]
[1730392208232,7.75384594,169.9,169.85,7.75384594]
[1730392208932,7.75384594,169.89,169.85,5.8873]
[1730392209315,7.75384594,169.89,169.84,36.297]
[1730392210041,5.886,169.9,169.84,36.297]
[1730392210042,13.63984594,169.9,169.84,44.05084594]
[1730392211935,7.75384594,169.89,169.84,44.05084594]
[1730392212136,7.75384594,169.89,169.84,36.297]
[1730392212926,7.75384594,169.87,169.84,14.7197]
[1730392215817,7.75384594,169.86,169.82,5.8885]
[1730392216018,7.75384594,169.85,169.82,5.8885]
[1730392216439,7.75384594,169.85,169.81,20.6109]
[1730392216440,7.75384594,169.84,169.81,20.6109]
[1730392216620,7.75384594,169.84,169.8,15.6839]
[1730392216820,7.75384594,169.81,169.77,14.725]
[1730392217638,7.75384594,169.84,169.78,7.75384594]
[1730392217819,7.75384594,169.87,169.81,7.75384594]
[1730392218140,31.53072994,169.87,169.81,7.75384594]
[1730392218324,7.75384594,169.84,169.79,16.5176]
[1730392218530,5.8865,169.88,169.8,5.8892]
[1730392218733,7.75384594,169.85,169.8,5.8892]
[1730392219227,7.75384594,169.86,169.81,7.75384594]
[1730392220021,7.75384594,169.86,169.8,28.36624594]
[1730392220440,18.03111582,169.86,169.8,32.75621582]
[1730392220825,12.14381582,169.85,169.8,20.6124]
[1730392221139,12.14381582,169.85,169.79,28.66141582]
[1730392221140,12.14381582,169.83,169.79,16.5176]
[1730392221345,12.14381582,169.8,169.77,20.6155]
[1730392221546,12.14381582,169.81,169.77,14.7256]
[1730392222434,18.03271582,169.81,169.77,14.7256]
[1730392222741,5.8886,169.82,169.77,26.86941582]
[1730392223122,12.14381582,169.79,169.75,16.5176]
[1730392223323,12.14381582,169.79,169.74,20.6191]
[1730392223522,5.8886,169.82,169.71,6.5246]
[1730392223523,12.14381582,169.76,169.72,5.8918]
[1730392223724,12.14381582,169.77,169.72,5.8918]
[1730392223946,20.61,169.82,169.72,5.8918]
[1730392223947,12.14381582,169.78,169.72,18.03561582]
[1730392224434,12.14381582,169.78,169.72,32.76571582]
[1730392224634,18.03371582,169.79,169.73,12.14381582]
[1730392225028,12.14381582,169.78,169.72,32.76571582]
[1730392226048,12.14381582,169.82,169.76,12.14381582]
[1730392226725,12.14381582,169.8,169.74,12.14381582]
[1730392227425,12.14381582,169.79,169.73,12.14381582]
[1730392227722,12.14381582,169.8,169.75,20.6185]
[1730392229868,18.03241582,169.82,169.76,12.14381582]
[1730392230168,18.03241582,169.82,169.75,20.6185]
[1730392230169,12.14381582,169.81,169.75,32.76231582]
[1730392230746,12.14381582,169.82,169.76,12.14381582]
[1730392230953,12.14381582,169.8,169.75,32.76231582]
[1730392231455,12.14381582,169.82,169.76,12.14381582]
[1730392231934,12.14381582,169.82,169.77,20.6161]
[1730392232344,12.14381582,169.81,169.77,20.6161]
[1730392232536,18.03241582,169.82,169.77,20.6161]
[1730392233245,18.03241582,169.82,169.77,14.7258]
[1730392233438,5.8886,169.82,169.77,42.37071582]
[1730392233627,12.14381582,169.84,169.78,12.14381582]
[1730392233829,18.03111582,169.86,169.8,12.14381582]
[1730392234032,5.8873,169.86,169.81,12.14381582]
[1730392234933,5.8873,169.86,169.81,18.03251582]
[1730392235156,18.03111582,169.86,169.81,20.611]
[1730392235360,12.14381582,169.85,169.81,20.611]
[1730392235653,12.14381582,169.84,169.79,20.6133]
[1730392237636,14.716,169.89,169.77,15.5011]
[1730392237637,12.14381582,169.81,169.77,15.5011]
[1730392238059,12.14381582,169.81,169.77,21.3913]
[1730392238247,12.14381582,169.82,169.77,36.1171]
[1730392238459,18.03201582,169.83,169.77,48.26091582]
[1730392238648,12.14381582,169.84,169.78,12.14381582]
[1730392239055,18.03181582,169.84,169.79,5.8896]
[1730392239459,12.14381582,169.86,169.8,12.14381582]
[1730392239754,12.14381582,169.84,169.79,20.6136]
[1730392240752,12.14381582,169.83,169.79,20.6136]
[1730392241960,12.14381582,169.85,169.79,26.86781582]
[1730392242136,12.14381582,169.87,169.81,12.14381582]
[1730392242331,5.8858,169.9,169.85,12.14381582]
[1730392242576,18.02931582,169.91,169.85,12.14381582]
[1730392242736,5.8855,169.91,169.83,12.14381582]
[1730392243154,12.14381582,169.9,169.84,12.14381582]
[1730392243465,12.14381582,169.92,169.86,12.14381582]
[1730392243934,5.8854,169.91,169.86,18.03081582]
[1730392244139,5.8854,169.91,169.86,5.887]
[1730392244363,12.14381582,169.9,169.84,12.14381582]
[1730392244547,12.14381582,169.89,169.83,26.86391582]
[1730392245759,12.14381582,169.89,169.83,32.75211582]
[1730392246550,12.14381582,169.88,169.83,20.6083]
[1730392247163,18.03021582,169.89,169.83,32.75211582]
[1730392247659,12.14381582,169.88,169.83,14.7201]
[1730392248539,12.14381582,169.89,169.83,26.86391582]
[1730392249574,5.8851,169.92,169.82,12.14381582]
[1730392249575,12.14381582,169.88,169.82,12.14381582]
[1730392249739,12.14381582,169.86,169.81,16.3801]
[1730392249937,12.14381582,169.84,169.81,16.3801]
[1730392250163,12.14381582,169.85,169.79,12.14381582]
[1730392250344,12.14381582,169.85,169.8,12.14381582]
[1730392250767,18.03151582,169.85,169.8,18.03291582]
[1730392251433,12.14381582,169.84,169.79,26.86781582]
[1730392251658,18.03151582,169.85,169.79,32.75731582]
[1730392253346,12.14381582,169.84,169.79,32.75731582]
[1730392254060,12.14381582,169.84,169.78,12.14381582]
[1730392254244,12.14381582,169.84,169.79,12.14381582]
[1730392254567,12.14381582,169.85,169.79,12.14381582]
[1730392254946,12.14381582,169.84,169.79,12.14381582]
[1730392255150,12.14381582,169.82,169.77,34.51621582]
[1730392255367,18.03261582,169.82,169.77,16.4822]
[1730392255576,12.14381582,169.79,169.75,14.7272]
[1730392256243,12.14381582,169.79,169.74,18.03511582]
[1730392256560,12.14381582,169.79,169.74,5.8913]
[1730392256737,12.14381582,169.78,169.73,28.50351582]
[1730392256937,12.14381582,169.79,169.73,34.39501582]
[1730392257473,5.8899,169.78,169.73,34.39501582]
[1730392258078,18.03341582,169.79,169.74,12.14381582]
[1730392258251,5.8896,169.79,169.75,12.14381582]
[1730392258445,5.8896,169.79,169.74,12.14381582]
[1730392259578,12.14381582,169.79,169.73,49.12421582]
[1730392260669,18.03351582,169.79,169.73,49.12421582]
[1730392261868,12.14381582,169.78,169.73,36.9804]
[1730392262067,12.14381582,169.79,169.73,49.12421582]
[1730392262279,12.14381582,169.78,169.73,49.12421582]
[1730392262770,12.14381582,169.76,169.71,18.03611582]
[1730392263173,12.14381582,169.78,169.72,12.14381582]
[1730392263970,12.14381582,169.77,169.71,32.76711582]
[1730392264751,5.8906,169.76,169.71,32.76711582]
[1730392265762,5.8906,169.76,169.72,12.14381582]
[1730392265952,5.8906,169.76,169.72,18.03571582]
[1730392266878,12.14381582,169.78,169.72,18.03571582]
[1730392267055,18.03411582,169.77,169.72,18.03571582]
[1730392267372,5.8903,169.77,169.72,18.03571582]
[1730392267779,18.03411582,169.77,169.72,5.8919]
[1730392268081,5.8903,169.77,169.73,12.14381582]
[1730392268384,5.8903,169.77,169.72,12.14381582]
[1730392268551,5.8903,169.77,169.71,20.6234]
[1730392268552,18.03411582,169.77,169.71,32.76721582]
[1730392270380,12.14381582,169.76,169.7,12.74323082]
[1730392270956,12.14381582,169.73,169.7,0.599415]
[1730392271361,12.14381582,169.76,169.7,33.36773082]
[1730392272379,5.891,169.75,169.7,33.36773082]
[1730392272680,12.14381582,169.76,169.73,12.14381582]
[1730392272681,5.8907,169.76,169.73,12.14381582]
[1730392272878,5.8901,169.78,169.74,12.14381582]
[1730392273081,18.03271582,169.81,169.75,12.14381582]
[1730392273284,5.8889,169.81,169.76,12.14381582]
[1730392274074,5.8889,169.81,169.78,12.14381582]
[1730392274264,5.8885,169.82,169.78,12.14381582]
[1730392274671,5.8885,169.82,169.78,18.03371582]
[1730392275075,5.8883,169.83,169.79,12.14381582]
[1730392275691,5.8883,169.83,169.78,18.03371582]
[1730392276266,12.14381582,169.84,169.78,18.03371582]
[1730392276473,12.14381582,169.83,169.77,12.14381582]
[1730392276673,12.14381582,169.82,169.77,12.14381582]
[1730392277075,12.14381582,169.83,169.78,12.14381582]
[1730392277269,18.03131582,169.85,169.79,12.14381582]
[1730392277571,12.14381582,169.84,169.78,12.14381582]
[1730392278180,18.03131582,169.85,169.79,12.14381582]
[1730392278475,5.8875,169.85,169.8,12.14381582]
[1730392278679,12.14381582,169.86,169.79,5.8894]
[1730392278680,5.8872,169.86,169.82,12.14381582]
[1730392278883,12.14381582,169.88,169.82,12.14381582]
[1730392279085,18.02961582,169.9,169.84,12.14381582]
[1730392279271,14.7131,169.92,169.87,12.14381582]
[1730392279272,6.11017561,169.91,169.87,12.14381582]
[1730392279483,5.8853,169.92,169.88,12.14381582]
[1730392279879,18.02911582,169.92,169.86,12.14381582]
[1730392280298,18.02911582,169.92,169.86,18.03091582]
[1730392282198,18.02911582,169.92,169.87,12.14381582]
[1730392282572,5.8853,169.92,169.87,12.14381582]
[1730392283580,18.02911582,169.92,169.86,12.14381582]
[1730392284087,12.14381582,169.9,169.84,32.75041582]
[1730392284283,12.14381582,169.89,169.83,12.14381582]
[1730392284601,12.14381582,169.88,169.83,12.14381582]
[1730392285380,12.14381582,169.89,169.83,12.14381582]
[1730392285701,12.14381582,169.9,169.84,12.14381582]
[1730392285875,12.14381582,169.89,169.83,12.14381582]
[1730392286275,12.14381582,169.9,169.85,12.14381582]
[1730392286497,12.14381582,169.88,169.82,34.54581582]
[1730392286697,5.8854,169.91,169.79,12.14381582]
[1730392286698,12.14381582,169.85,169.79,12.14381582]
[1730392286902,12.14381582,169.84,169.78,34.07721582]
[1730392287403,12.14381582,169.9,169.78,16.0435]
[1730392287404,18.03201582,169.83,169.78,16.0435]
[1730392287706,12.14381582,169.81,169.78,16.0435]
[1730392288085,12.14381582,169.81,169.76,14.7264]
[1730392288284,0.1,169.87,169.76,14.7264]
[1730392288285,5.8869,169.87,169.76,20.617]
[1730392288490,12.14381582,169.88,169.82,12.14381582]
[1730392288999,12.14381582,169.89,169.83,12.14381582]
[1730392289403,12.14381582,169.87,169.81,12.14381582]
[1730392289597,12.14381582,169.87,169.82,12.14381582]
[1730392290193,12.14381582,169.85,169.8,12.14381582]
[1730392290397,12.14381582,169.85,169.79,12.14381582]
[1730392290702,12.14381582,169.84,169.78,26.86871582]
[1730392290910,12.14381582,169.82,169.76,12.14381582]
[1730392291502,18.03271582,169.82,169.76,18.03421582]
[1730392291914,12.14381582,169.8,169.75,12.14381582]
[1730392292311,12.14381582,169.81,169.75,18.03481582]
[1730392293186,5.8892,169.8,169.75,18.03481582]
[1730392294504,18.03301582,169.8,169.74,27.26191582]
[1730392294708,18.03301582,169.8,169.74,33.15321582]
[1730392294889,5.8892,169.8,169.75,12.14381582]
[1730392295088,5.8892,169.8,169.76,12.14381582]
[1730392295505,5.8892,169.8,169.75,12.14381582]
[1730392295710,18.03301582,169.8,169.74,47.88161582]
[1730392296398,12.14381582,169.82,169.76,12.14381582]
[1730392297696,18.03271582,169.81,169.76,18.03441582]
[1730392299486,12.14381582,169.83,169.77,12.14381582]
[1730392299790,12.14381582,169.82,169.77,12.14381582]
[1730392300113,12.14381582,169.82,169.76,32.76101582]
[1730392300614,5.8889,169.81,169.76,32.76101582]
[1730392301495,5.8885,169.82,169.77,18.03391582]
[1730392301906,18.03201582,169.83,169.77,32.75971582]
[1730392302811,12.14381582,169.82,169.77,32.75971582]
[1730392303116,18.03241582,169.82,169.77,32.75971582]
[1730392303499,12.14381582,169.82,169.77,32.75971582]
[1730392303710,12.14381582,169.81,169.77,20.6159]
[1730392305403,18.03301582,169.81,169.77,14.7258]
[1730392305917,12.14381582,169.8,169.77,14.7258]
[1730392306118,12.14381582,169.78,169.74,15.1181]
[1730392307420,18.03381582,169.78,169.74,15.1181]
[1730392307597,18.03381582,169.78,169.7,0.599415]
[1730392307598,12.14381582,169.75,169.7,0.599415]
[1730392307799,12.14381582,169.74,169.7,0.599415]
[1730392308001,12.14381582,169.75,169.7,6.492015]
[1730392308219,12.14381582,169.76,169.7,18.63583082]
[1730392308516,12.14381582,169.76,169.7,33.36763082]
[1730392309098,12.14381582,169.74,169.7,0.599415]
[1730392310222,14.7249,169.78,169.7,0.599415]
[1730392310223,12.14381582,169.72,169.7,0.599415]
[1730392310797,12.14381582,169.73,169.7,0.599415]
[1730392311512,18.03551582,169.73,169.7,0.599415]
[1730392311713,12.14381582,169.72,169.7,0.599415]
[1730392311923,12.14381582,169.71,169.7,0.599415]
[1730392313520,18.03621582,169.71,169.7,0.599415]
[1730392321223,12.14381582,169.72,169.7,0.599415]
[1730392321402,12.14381582,169.71,169.7,0.599415]
[1730392322503,18.03621582,169.71,169.7,0.599415]
[1730392324832,41.81309982,169.71,169.7,0.599415]
[1730392328008,62.98901564,169.71,169.7,0.599415]
[1730392328243,23.776884,169.7,169.59,22.3231]
[1730392328423,12.14381582,169.64,169.59,22.3231]
[1730392328608,12.14381582,169.64,169.59,37.0645]
[1730392329117,12.14381582,169.63,169.59,37.0645]
[1730392329519,12.14381582,169.62,169.59,16.4268]
[1730392330031,12.14381582,169.65,169.59,34.46691582]
[1730392330212,12.14381582,169.65,169.59,49.20831582]
[1730392330414,12.14381582,169.64,169.59,37.0645]
[1730392331311,18.03871582,169.64,169.59,37.0645]
[1730392331637,12.14381582,169.63,169.59,31.1682]
[1730392332017,12.14381582,169.62,169.59,31.1682]
[1730392332521,12.14381582,169.62,169.59,16.4268]
[1730392333122,12.14381582,169.61,169.59,16.4268]
[1730392334014,12.14381582,169.6,169.53,0.599415]
[1730392334217,12.14381582,169.57,169.53,21.244315]
[1730392335118,12.14381582,169.57,169.53,15.345715]
[1730392335319,18.04111582,169.57,169.53,15.345715]
[1730392335837,12.14381582,169.56,169.53,15.345715]
[1730392338023,12.14381582,169.54,169.53,0.599415]
[1730392338714,12.14381582,169.57,169.53,0.599415]
[1730392338925,5.8958,169.61,169.53,0.599415]
[1730392338926,12.14381582,169.59,169.53,33.38843082]
[1730392339152,5.8958,169.61,169.53,33.38843082]
[1730392339153,12.14381582,169.58,169.53,33.38843082]
[1730392339326,12.14381582,169.57,169.53,21.244615]
[1730392339515,11.97848374,169.63,169.55,12.14381582]
[1730392339840,5.8954,169.63,169.53,21.244615]
[1730392340034,12.14381582,169.57,169.53,21.244615]
[1730392340222,12.14381582,169.56,169.53,0.599415]
[1730392340423,5.8973,169.57,169.53,0.599415]
[1730392340424,12.14381582,169.55,169.53,0.599415]
[1730392342760,5.897,169.58,169.53,6.498015]